Cogmind - Beta 15 @@@ ROGUE MODE // 2025.08.01 @ 08:40:44 Player: cingulata Result: Destroyed by H-66 Slayer with Heavy Assault Rifle Performance ------------- Evolutions (5) 2500 Regions Visited (15) 3000 Robots Destroyed (151) 755 Value Destroyed (5047) 5047 Prototype IDs (32) 640 Alien Tech Used (0) 0 Bonus (2767) 2767 TOTAL SCORE: 14709 Bonus ------- Follower Combat Kills 212 Aligned with FarCom 300 Met Imprinter 300 Met Warlord at Base 500 MAIN.C Attacked Warlord 500 Warlord Defense Kills 980 Friendly Fire -25 Cogmind --------- Core Integrity 0/1000 Matter 275/300 Energy 199/200 System Corruption 15% Temperature Cool (0) Movement Core (50) Location -5/Warlord Parts ------- > --- POWER (2) -------- (None) > --- PROPULSION (6) --- (None) > --- UTILITY (6) ------ Small Battery Improved Launcher Guidance Computer Improved Target Analyzer > --- WEAPON (3) ------- (None) > --- INVENTORY (5) ---- High-powered Tractor Beam Vortex Rail (29) Heavy Machine Gun RU-N14's Throwing Claymores v3 (4) Longsword +1 Peak State ------------ > --- POWER ------------ Reinforced Deuterium Engine Light Angular Momentum Engine > --- PROPULSION ------- Advanced Treads Medium Treads Spiked Medium Treads Spiked Medium Treads Armored Huge Wheel > --- UTILITY ---------- Huge Storage Unit Improved Targeting Computer Advanced Targeting Computer Improved Medium Armor Plating Layered Medium Armor Plating Hardlight Generator > --- WEAPON ----------- KE Penetrator Magnetic Acceleration Cannon RU-N14's Throwing Claymores v3 > --- INVENTORY -------- Neutrino Core Light Antimatter Reactor High-capacity Matter Pod Advanced Recoil Stabilizer Improved Transmission Jammer Improved Medium Armor Plating Thermal Shield Hacking Suite System Shield High-powered Tractor Beam Vortex Rail Vortex Rail Heavy Phase Cannon Heavy Phase Cannon Heavy Battle Rifle Hypervelocity Gauss Rifle Heavy Machine Gun KE Penetrator Hypervelocity Coil Gun Advanced Assault Cannon Advanced Assault Cannon Rocket Launcher RU-N14's Throwing Claymores v3 RU-N14's Throwing Claymores v3 Longsword +1 [Rating: 85] Favorites ----------- Power Reinforced Deuterium Engine Engine Reinforced Deuterium Engine Power Core Micro Fission Core Propulsion Light Treads Treads Light Treads Leg Aluminum Leg Wheel Armored Huge Wheel Utility Improved Targeting Computer Device Improved Heat Sink Storage Huge Storage Unit Processor Improved Targeting Computer Hackware System Shield Protection Improved Medium Armor Plating Weapon Improved Light Cannon Energy Gun Spread Laser Energy Cannon Advanced Beam Cannon Ballistic Gun Heavy Assault Rifle Ballistic Cannon Improved Light Cannon Launcher Grenade Launcher Special Weapon RU-N14's Throwing Claymores v3 Impact Weapon Heavy Hammer Slashing Weapon Longsword +1 Build | -11 -10 -10 -9 -9 -9 -8 -8 -7 -7 -6 -5 -5 -5 -5 -5 ------- Run | Yrd Mat Min Mat Min Exi Min Mat Fac Low Zio Pro Fac Upp Upp War Slots Evolved 10 | . . . 2 . . . 2 2 . . . 4 . . . Power 1 | . . . . . . . . . . . . 1 . . . Propulsion 4 | . . . 1 . . . 1 1 . . . 1 . . . Utility 4 | . . . 1 . . . 1 1 . . . 1 . . . Weapon 1 | . . . . . . . . . . . . 1 . . . Parts Attached 135 | 1 15 6 20 . 3 3 13 21 2 10 2 8 9 7 15 Power 7 | . 1 1 1 . . . 1 1 . . . 1 . . 1 Engine 6 | . 1 1 1 . . . 1 1 . . . 1 . . . Core 1 | . . . . . . . . . . . . . . . 1 Reactor . | . . . . . . . . . . . . . . . . Propulsion 29 | . 3 1 8 . . 2 3 7 . . . 2 3 . . Treads 19 | . 1 . 5 . . 1 3 4 . . . 2 3 . . Leg . | . . . . . . . . . . . . . . . . Wheel 10 | . 2 1 3 . . 1 . 3 . . . . . . . Hover . | . . . . . . . . . . . . . . . . Flight . | . . . . . . . . . . . . . . . . Utility 49 | 1 6 . 5 . . . 3 9 . 8 2 4 3 4 4 Device 19 | 1 2 . 2 . . . . 5 . 1 2 3 2 1 . Storage 6 | . 3 . 1 . . . 1 . . . . . . . 1 Processor 5 | . . . . . . . 1 1 . . . . . 1 2 Hackware 8 | . . . . . . . 1 . . 7 . . . . . Protection 11 | . 1 . 2 . . . . 3 . . . 1 1 2 1 Artifact . | . . . . . . . . . . . . . . . . Weapon 50 | . 5 4 6 . 3 1 6 4 2 2 . 1 3 3 10 Energy Gun 5 | . 2 . . . . . . . . . . . . . 3 Energy Cannon 5 | . . . . . 2 . 1 . . 1 . . . 1 . Ballistic Gun 22 | . 2 2 2 . . . 2 4 . 1 . 1 2 2 4 Ballistic Cannon 7 | . . . 3 . . 1 1 . 1 . . . 1 . . Launcher 5 | . . 2 . . . . 2 . 1 . . . . . . Special Weapon 4 | . 1 . . . . . . . . . . . . . 3 Impact Weapon 1 | . . . 1 . . . . . . . . . . . . Slashing Weapon 1 | . . . . . 1 . . . . . . . . . . Piercing Weapon . | . . . . . . . . . . . . . . . . Special Melee Weapon . | . . . . . . . . . . . . . . . . Unidentified Prototypes 3 | . . . . . . . 1 . . . . . . . 2 Parts Lost 38 | . 3 1 3 . . 3 1 7 . . . 1 . 5 14 Power 1 | . . . . . . . . . . . . . . . 1 Propulsion 17 | . 2 . 1 . . 2 1 4 . . . 1 . 3 3 Utility 14 | . 1 1 2 . . 1 . 2 . . . . . 2 5 Weapon 6 | . . . . . . . . 1 . . . . . . 5 Highest Loss Streak 6 | . 2 1 2 . . 3 1 4 . . . 1 . 4 6 To Critical Strikes 2 | . . . . . . . . 1 . . . . . . 1 Average Backups 20 | 6 10 14 16 19 19 17 20 22 25 24 25 24 23 22 23 Power 2 | 1 2 2 2 2 2 2 2 2 3 2 2 1 2 2 1 Propulsion 2 | 4 1 1 3 6 6 4 3 1 2 2 3 2 1 . . Utility 5 | . 2 3 3 3 3 3 3 5 8 8 8 11 9 8 7 Weapon 10 | 1 3 7 8 8 8 8 12 13 12 11 11 10 9 11 13 Tool/Special . | . . . . . . . . . . . . . . . . Unused Backups 48 | 6 10 . 4 . . . 4 3 . 1 2 5 . 1 12 Power 11 | 1 3 . 1 . . . 2 1 . . 1 . . . 2 Propulsion 5 | 2 3 . . . . . . . . . . . . . . Utility 17 | 1 2 . 1 . . . 2 2 . . . 4 . 1 4 Weapon 15 | 2 2 . 2 . . . . . . 1 1 1 . . 6 Tool/Special . | . . . . . . . . . . . . . . . . Average Slot Usage (%) 95 | . 99 100 98 100 99 84 99 96 92 90 92 93 98 93 85 Engine 9 | . 14 14 11 11 11 11 9 7 7 7 7 10 11 11 9 Treads 22 | . 8 14 21 22 22 21 35 26 7 7 12 17 30 26 19 Wheel 8 | . 13 14 10 11 11 7 . 9 23 23 17 10 2 2 4 Device 8 | . 8 3 5 11 11 11 14 8 7 7 7 9 9 5 5 Storage 8 | . 17 14 11 11 11 11 9 7 7 7 7 5 5 5 4 Processor 7 | . . . . . . . 9 9 15 15 15 5 5 9 10 Protection 7 | . 1 10 16 11 11 . . 8 7 6 7 10 12 11 9 Ballistic Gun 9 | . 17 25 5 22 19 2 1 10 . 6 15 11 12 11 10 Ballistic Cannon 5 | . . . 16 . . 19 9 1 14 1 . . 1 4 3 Slashing Weapon 1 | . . . . . 2 . 4 1 . 3 . 4 2 . . Peak Build Rating 85 | 7 12 12 18 16 32 17 36 50 47 50 49 72 78 81 85 Average Rating 41 | 6 9 11 15 16 17 13 30 38 45 47 47 69 74 76 74 On Entrance 34 | 6 7 12 12 18 16 17 14 36 50 47 47 49 69 74 81 Naked Turns 24 | . . . . . . . . . . . . . . . 24 Heaviest Build 147 | 14 50 38 67 61 61 56 102 120 114 116 113 133 142 145 147 Greatest Support 152 | 20 20 10 40 10 10 16 80 102 56 56 56 40 152 152 84 Greatest Overweight (x) 7 | . 4 3 6 6 6 3 1 7 2 2 5 3 4 5 5 Average Overweight (x) 2 | . 2 3 4 6 5 3 . 3 1 1 1 3 . 3 4 Largest Inventory Capacity 25 | 8 15 15 20 20 20 20 25 25 25 25 25 25 25 25 25 Average Capacity 22 | 8 13 15 17 20 20 20 22 25 25 25 25 25 25 25 23 Most Carried 25 | 8 15 15 20 19 20 20 25 25 25 25 25 25 25 25 25 Average Carried 21 | 6 10 14 16 19 19 17 20 22 24 24 24 24 24 23 23 Final Capacity 25 | 8 15 15 20 20 20 20 25 25 25 25 25 25 25 25 5 Final Carried 25 | 8 15 15 19 19 20 17 25 25 25 25 25 25 25 25 5 Class Distribution -------------------- 41% | Mutant 26% | Scavenger-Mutant 15% | Scavenger-Tank 6% | Skirmisher 3% | Scavenger-Gunner Dominant Class ---------------- Mutant | -10/Materials Mutant | -10/Mines Mutant | -9/Materials Scavenger-Mutant | -9/Mines Scavenger-Mutant | -9/Exiles Skirmisher | -8/Mines Scavenger-Mutant | -8/Materials Mutant | -7/Factory Mutant | -7/Lower Caves Mutant | -6/Zion Mutant | -5/Proximity Caves Scavenger-Mutant | -5/Factory Scavenger-Mutant | -5/Upper Caves Scavenger-Tank | -5/Upper Caves Scavenger-Tank | -5/Warlord Resources | -11 -10 -10 -9 -9 -9 -8 -8 -7 -7 -6 -5 -5 -5 -5 -5 ----------- Run | Yrd Mat Min Mat Min Exi Min Mat Fac Low Zio Pro Fac Upp Upp War Matter Collected 5467 | 228 428 375 731 . . 254 683 1054 336 120 99 217 221 431 290 Remotely 343 | . . . . . . . . 225 . . . . . 118 . Salvage Created 5483 | 110 976 141 811 . . 186 681 835 53 . 78 536 226 733 117 Parts 290 | 5 47 3 53 . . 7 43 47 2 . 9 28 7 35 4 Haulers Intercepted 5 | . 1 . 2 . . . 1 1 . . . . . . . Recyclers Shooed 5 | . . . . . . 2 . . . . . 3 . . . Parts Field Recycled . | . . . . . . . . . . . . . . . . Retrieved Matter . | . . . . . . . . . . . . . . . . Parts Self-Destructed 60 | . . . . . . . . . 2 4 19 . 4 31 . Prevented . | . . . . . . . . . . . . . . . . Kills | -11 -10 -10 -9 -9 -9 -8 -8 -7 -7 -6 -5 -5 -5 -5 -5 ------- Run | Yrd Mat Min Mat Min Exi Min Mat Fac Low Zio Pro Fac Upp Upp War Combat Hostiles Destroyed 125 | . 15 15 18 . . 2 21 15 2 . 4 1 2 23 7 Guns 53 | . 15 13 2 . . . . 7 . . 4 1 1 8 2 Cannons 46 | . . . 16 . . 2 15 8 . . . . 1 3 1 AOE 24 | . . 2 . . . . 6 . 2 . . . . 12 2 Classes Destroyed 19 | 2 5 1 3 . . . 2 1 . . . . 1 2 2 Worker 4 | . 1 . . . . . 2 . . . . 1 . . . Builder 7 | . . . 1 . . . 1 2 . . . 3 . . . Tunneler 3 | 1 1 1 . . . . . . . . . . . . . Hauler 5 | . 1 . 2 . . . 1 1 . . . . . . . Recycler 14 | 1 4 . 1 . . 2 1 2 . . . 3 . . . Operator 5 | . 2 . 1 . . . 1 1 . . . . . . . Watcher 3 | . . . 1 . . . 1 1 . . . . . . . Swarmer 26 | . 3 . . . . . 8 . . . 4 . . 11 . Grunt 47 | . 12 . 10 . . 2 5 8 2 . . . . 8 . Brawler 3 | . . . . . . . . . . . . . . 1 2 Duelist 1 | . . . . . . . . . . . . . . . 1 Protector 1 | . . . . . . . . . . . . . . 1 . Sentry 16 | . . . 8 . . . 4 1 . . . 1 1 1 . Specialist 2 | . . . . . . . 2 . . . . . . . . Hunter 4 | . . . . . . . 2 1 . . . . . 1 . Programmer 8 | . . . . . . . . 5 . . . . . . 3 Behemoth 1 | . . . . . . . . . . . . . . . 1 Assembled 15 | . . 15 . . . . . . . . . . . . . Mutant 1 | . . . . . . . . . . . . . 1 . . Best Kill Streak 13 | 2 3 6 4 . . 2 4 5 2 . 4 3 1 13 3 Combat Bots Only 13 | . 3 6 3 . . 2 4 5 2 . 4 1 1 13 3 Max Kills in Single Turn 3 | 1 1 1 2 . . 1 3 1 1 . 2 2 1 2 3 Gunslinging . | . . . . . . . . . . . . . . . . Exploded 3 | . . 1 . . . . 3 . 1 . . . . 2 2 Melee . | . . . . . . . . . . . . . . . . Uniques/NPCs Destroyed . | . . . . . . . . . . . . . . . . Combat | -11 -10 -10 -9 -9 -9 -8 -8 -7 -7 -6 -5 -5 -5 -5 -5 -------- Run | Yrd Mat Min Mat Min Exi Min Mat Fac Low Zio Pro Fac Upp Upp War Hostile Shots Fired 960 | . 49 48 93 . . 33 100 227 30 . 41 8 20 122 189 Missed 266 | . 13 15 24 . . 8 37 58 10 . 10 . 6 23 62 Hits 694 | . 36 33 69 . . 25 63 169 20 . 31 8 14 99 127 Melee 17 | . . 9 . . . 5 . . . . . . . . 3 Projectile 677 | . 36 24 69 . . 20 63 169 20 . 31 8 14 99 124 AOE 1 | . . . . . . . . 1 . . . . . . . Critical Strikes 19 | . 1 . . . . 1 1 6 1 . . . 1 1 7 Damage Taken 10850 | . 452 581 819 . . 483 958 2159 188 . 350 267 289 1742 2562 Core 1668 | . 135 67 92 . . 105 59 134 32 . 39 . . 75 930 Absorbed by Shields 468 | . . . . . . . . 136 . . 117 . 14 109 92 Ignored by Resistances 108 | . . . . . . . . 108 . . . . . . . Regen/Repaired (Parts) 1376 | . 13 . . . . . 360 152 . 631 . 31 . . 189 Core Remaining (%) 65 | 100 . 19 . . . 50 89 . . . 70 . . . . Volleys Fired 412 | 6 77 29 58 . . 16 68 70 3 6 7 12 9 32 19 Largest 3 | 2 2 2 2 . . 2 2 2 1 1 2 3 3 3 3 Hottest 156 | 60 100 60 66 . . 66 101 70 33 90 48 81 110 156 101 Shots Fired 785 | 12 137 59 116 . . 32 115 124 3 6 14 33 21 69 44 Gun 453 | 12 135 55 24 . . 8 . 79 . . 14 33 18 42 33 Cannon 291 | . . . 92 . . 24 100 45 . 6 . . 3 18 3 Launcher 31 | . . 4 . . . . 15 . 3 . . . . 9 . Special 10 | . 2 . . . . . . . . . . . . . 8 Kinetic 669 | 6 101 55 116 . . 32 78 121 . . 14 33 21 57 35 Thermal 76 | 6 36 . . . . . 22 3 . 6 . . . 3 . Explosive 39 | . . 4 . . . . 15 . 3 . . . . 9 8 Electromagnetic . | . . . . . . . . . . . . . . . . Entropic 1 | . . . . . . . . . . . . . . . 1 Robot Hit Streak 18 | 7 14 6 15 . . 7 15 14 . . 6 14 18 16 7 Robot Miss Streak 6 | 2 5 6 2 . . 3 3 4 1 . 4 1 1 5 3 Penetration Max 2 | . . . . . . . . 1 . . . . . 1 2 Secondary Targets 4 | . . 1 . . . . . 1 . . 1 . . . 1 Max Gunslinging Chain 1 | . . 1 . . . . . 1 . . 1 . . . 1 Shots Hit Robots 518 | 9 97 39 73 . . 19 72 92 . . 10 30 20 38 19 Core Hits 327 | 3 64 36 33 . . 6 40 42 3 . 5 15 11 52 17 Critical Kills 4 | . 1 . . . . . . . . . . . . 3 . Critical Parts Destroyed 7 | . . . . . . . . 1 . . 1 . . 2 3 Critical Strikes 23 | . 1 . 4 . . 1 4 3 . . 1 . 1 5 3 Destroy 11 | . 1 . . . . . . 1 . . 1 . . 5 3 Blast 11 | . . . 4 . . 1 4 2 . . . . . . . Sever 1 | . . . . . . . . . . . . . 1 . . Melee Attacks 60 | . . . 2 . . . 26 14 . 4 . 9 5 . . Impact 2 | . . . 2 . . . . . . . . . . . . Slashing 58 | . . . . . . . 26 14 . 4 . 9 5 . . Piercing . | . . . . . . . . . . . . . . . . Sneak Attacks 13 | . . . . . . . 6 2 . . . 5 . . . Combat Hostiles . | . . . . . . . . . . . . . . . . Follow-up Attacks . | . . . . . . . . . . . . . . . . Damage Inflicted 15327 | 99 1176 697 1506 . . 417 2364 2159 195 . 230 1088 624 2080 2692 Guns 5472 | 99 1176 528 227 . . 94 . 1198 . . 230 471 266 534 649 Cannons 4141 | . . . 1279 . . 323 1260 791 . . . . 52 349 87 Explosions 3725 | . . 169 . . . . 498 . 195 . . . . 1197 1666 Melee 1699 | . . . . . . . 606 170 . . . 617 306 . . Ramming 15 | . . . . . . . . . . . . . . . 15 Kinetic 8829 | 46 769 528 1506 . . 417 1004 1989 . . 230 471 318 850 701 Thermal 749 | 53 407 . . . . . 256 . . . . . . 33 . Explosive 3725 | . . 169 . . . . 498 . 195 . . . . 1197 1666 Electromagnetic . | . . . . . . . . . . . . . . . . Impact . | . . . . . . . . . . . . . . . . Slashing 1974 | . . . . . . . 606 170 . . . 617 306 . 275 Piercing . | . . . . . . . . . . . . . . . . Entropic 35 | . . . . . . . . . . . . . . . 35 Highest Corruption 15 | . . 1 . . . . . 2 2 2 . 1 1 . 15 Average Corruption 2 | . . 1 . . . . . 1 2 2 . 1 1 . 12 Corruption Purged 3 | . . . . . . . . 2 . . . . 1 . . Corruption Blocked . | . . . . . . . . . . . . . . . . Effects 43 | . . 3 . . . . . 17 8 1 . 5 1 . 8 Message Errors 18 | . . 2 . . . . . 6 4 1 . 2 . . 3 Matter Fused 8 | . . . . . . . . 2 2 . . . 1 . 3 Heat Flow Errors 1 | . . . . . . . . . 1 . . . . . . Energy Discharges 4 | . . . . . . . . 3 . . . 1 . . . Parts Fused 1 | . . . . . . . . 1 . . . . . . . Data Loss (minor) 3 | . . . . . . . . 2 1 . . . . . . Data Loss (major) 2 | . . . . . . . . 1 . . . 1 . . . Misfires 3 | . . 1 . . . . . 1 . . . 1 . . . Alerts 2 | . . . . . . . . 1 . . . . . . 1 Misdirections 1 | . . . . . . . . . . . . . . . 1 Overload Shots . | . . . . . . . . . . . . . . . . Overflow Damage 336 | . . 1 2 . . . 87 17 . . . 107 35 11 76 Projectiles 33 | . . . 2 . . . 14 17 . . . . . . . Explosions 93 | . . 1 . . . . 5 . . . . . . 11 76 Melee 210 | . . . . . . . 68 . . . . 107 35 . . Knockbacks 44 | . . . 11 . . 3 13 13 . . . . . 4 . Impact . | . . . . . . . . . . . . . . . . Kinetic 41 | . . . 10 . . 3 13 12 . . . . . 3 . Secondary 3 | . . . 1 . . . . 1 . . . . . 1 . Self-Inflicted Damage 27 | . . 20 . . . . . . . . . . . . 7 Shots 1 | . . 1 . . . . . . . . . . . . . Rammed 2 | . . . . . . . . . . . . . . . 2 Targets Rammed 2 | . . . . . . . . . . . . . . . 2 Kicked . | . . . . . . . . . . . . . . . . Crushed . | . . . . . . . . . . . . . . . . Highest Temperature 370 | . 144 36 252 . . 50 3 287 258 54 . 136 186 370 338 Average Temperature 95 | . 33 18 56 . . 21 3 132 132 29 . 51 64 194 122 Received Heat Transfer 2833 | . 168 140 279 . . 180 279 717 24 . 9 48 60 579 350 Effects 15 | . . . . . . . . 3 . . . . . 12 . Shutdowns 5 | . . . . . . . . . . . . . . 5 . Energy Bleed 5 | . . . . . . . . . . . . . . 5 . Interference 5 | . . . . . . . . 3 . . . . . 2 . Siege Activations . | . . . . . . . . . . . . . . . . Martial Activations . | . . . . . . . . . . . . . . . . Shielding Activations . | . . . . . . . . . . . . . . . . Robots Disrupted . | . . . . . . . . . . . . . . . . Combat Hostiles . | . . . . . . . . . . . . . . . . Robots Corrupted . | . . . . . . . . . . . . . . . . Combat Hostiles . | . . . . . . . . . . . . . . . . Parts Fried . | . . . . . . . . . . . . . . . . Impact Corruptions . | . . . . . . . . . . . . . . . . Robots Melted . | . . . . . . . . . . . . . . . . Combat Hostiles . | . . . . . . . . . . . . . . . . Parts Melted 1 | . . . . . . 1 . . . . . . . . . Heat Transferred 1121 | 125 515 . . . . . 444 . . . . . . 37 . Parts Sabotaged . | . . . . . . . . . . . . . . . . Parts Stolen . | . . . . . . . . . . . . . . . . Parts Stripped . | . . . . . . . . . . . . . . . . Power Chain Reactions . | . . . . . . . . . . . . . . . . Alert | -11 -10 -10 -9 -9 -9 -8 -8 -7 -7 -6 -5 -5 -5 -5 -5 ------- Run | Yrd Mat Min Mat Min Exi Min Mat Fac Low Zio Pro Fac Upp Upp War Maximum Alert Level 1 | . . . . . . . 1 . . . . . . . . Low Security (%) 89 | 100 100 100 100 100 . 100 64 100 . . . 100 . . . Level 1 10 | . . . . . . . 35 . . . . . . . . Level 2 . | . . . . . . . . . . . . . . . . Level 3 . | . . . . . . . . . . . . . . . . Level 4 . | . . . . . . . . . . . . . . . . Level 5 . | . . . . . . . . . . . . . . . . High Security . | . . . . . . . . . . . . . . . . Max Security . | . . . . . . . . . . . . . . . . Peak Influence 305 | 10 89 16 128 30 . 20 305 137 . . . 149 . . . Initial 137 | . . 15 . 30 . . . 137 . . . 88 . . . Average 63 | . 29 1 46 13 . 3 128 38 . . . 47 . . . Influence Increases 4033 | 10 435 21 608 . . 51 746 600 55 . 366 381 30 485 245 Destroy 0b10 Robot/C 2300 | . 300 . 360 . . 40 420 300 40 . 180 60 20 440 140 Destroy 0b10 Robot/NC 225 | 10 45 5 30 . . 10 35 35 . . . 40 10 5 . Destroy Leader 456 | . 62 . 116 . . . 104 94 . . 20 20 . 40 . Allied During Kill 182 | . . . . . . . . . . . 136 46 . . . Successful Hack 207 | . 24 . 15 . . . 44 81 . . . 43 . . . Disable Machine 135 | . . . 30 . . . 15 30 . . . 60 . . . Destroy Structure 243 | . 4 16 12 . . 1 83 15 . . . 112 . . . Partial Spotted 15 | . . . . . . . 15 . . . . . . . . Lose Combat Pursuer 270 | . . . 45 . . . 30 45 15 . 30 . . . 105 Influence Decreases 3954 | 10 394 62 529 79 . 51 443 818 140 . 224 508 45 485 166 Entered New Map 333 | . . 26 . 49 . . . 166 32 . . 54 6 . . Time Decay 3020 | 10 358 36 403 30 . 41 433 512 108 . 224 325 39 435 66 Lost Part 280 | . 30 . 10 . . 10 10 70 . . . . . 50 100 Lost Ally 136 | . . . . . . . . 7 . . . 129 . . . Purge Threat 185 | . 6 . 116 . . . . 63 . . . . . . . Squads Dispatched 22 | . 5 . 2 . . . 3 9 . . . 2 . 1 . Investigation 3 | . . . . . . . 1 2 . . . . . . . Extermination 7 | . . . . . . . . 5 . . . 2 . . . Reinforcement 11 | . 5 . 2 . . . 2 2 . . . . . . . Assault 1 | . . . . . . . . . . . . . . 1 . Garrison . | . . . . . . . . . . . . . . . . Intercept . | . . . . . . . . . . . . . . . . Searches Triggered . | . . . . . . . . . . . . . . . . Construction Impeded . | . . . . . . . . . . . . . . . . Haulers Reinforced 1 | . . . . . . . . 1 . . . . . . . Active Scanning Responses . | . . . . . . . . . . . . . . . . Cargo Convoy Interrupts . | . . . . . . . . . . . . . . . . Stealth | -11 -10 -10 -9 -9 -9 -8 -8 -7 -7 -6 -5 -5 -5 -5 -5 --------- Run | Yrd Mat Min Mat Min Exi Min Mat Fac Low Zio Pro Fac Upp Upp War Distress Signals 10 | . 3 . 2 . . . 3 . . . . 1 . . 1 Communications Jammed 1 | . . . . . . . . . . . . 1 . . . Distress Signals 1 | . . . . . . . . . . . . 1 . . . Times Spotted 221 | . 32 18 33 . . 3 29 29 3 1 15 5 2 21 30 Peak Tracking Total 12 | . 4 7 4 . . 3 7 5 2 1 5 2 1 9 12 Tactical Retreats 16 | . 2 3 1 . . . 1 2 1 . 2 . . . 4 Traps | -11 -10 -10 -9 -9 -9 -8 -8 -7 -7 -6 -5 -5 -5 -5 -5 ------- Run | Yrd Mat Min Mat Min Exi Min Mat Fac Low Zio Pro Fac Upp Upp War Traps Triggered 6 | . 2 . . . . . 1 2 . . . 1 . . . Indirectly . | . . . . . . . . . . . . . . . . Trap Hack Attempts . | . . . . . . . . . . . . . . . . Triggered . | . . . . . . . . . . . . . . . . Disarmed . | . . . . . . . . . . . . . . . . Reprogrammed . | . . . . . . . . . . . . . . . . Reused . | . . . . . . . . . . . . . . . . Traps Extracted . | . . . . . . . . . . . . . . . . Installed . | . . . . . . . . . . . . . . . . Triggered . | . . . . . . . . . . . . . . . . Machines | -11 -10 -10 -9 -9 -9 -8 -8 -7 -7 -6 -5 -5 -5 -5 -5 ---------- Run | Yrd Mat Min Mat Min Exi Min Mat Fac Low Zio Pro Fac Upp Upp War Machines Disabled 18 | . . . 2 . . . 1 2 . . . 4 1 1 7 Max in Single Turn 3 | . . . 1 . . . 1 1 . . . . 1 1 3 Garrison Access 2 | . . . . . . . 1 . . . . 1 . . . Machines Repaired . | . . . . . . . . . . . . . . . . Machines Dismantled . | . . . . . . . . . . . . . . . . Machines Sabotaged . | . . . . . . . . . . . . . . . . Overloaded Fab Kills . | . . . . . . . . . . . . . . . . Hacking | -11 -10 -10 -9 -9 -9 -8 -8 -7 -7 -6 -5 -5 -5 -5 -5 --------- Run | Yrd Mat Min Mat Min Exi Min Mat Fac Low Zio Pro Fac Upp Upp War Machines Accessed 66 | . 7 . 8 . 2 . 12 13 1 . 1 5 3 3 11 Terminals 33 | . 4 . 7 . . . 9 8 . . 1 3 1 . . Fabricators . | . . . . . . . . . . . . . . . . Repair Stations 6 | . 1 . 1 . . . 1 2 . . . 1 . . . Recycling Units 4 | . 2 . . . . . . 2 . . . . . . . Scanalyzers 1 | . . . . . . . 1 . . . . . . . . Garrison Access 3 | . . . . . . . 1 1 . . . 1 . . . Total Hacks 160 | . 19 . 21 . 2 . 43 30 1 . 1 12 3 7 21 Successful 106 | . 14 . 11 . 2 . 23 16 1 . 1 7 3 7 21 Failed 54 | . 5 . 10 . . . 20 14 . . . 5 . . . Catastrophic 9 | . 1 . 1 . . . 4 3 . . . . . . . Database Lockouts . | . . . . . . . . . . . . . . . . Manual 69 | . 10 . 13 . 1 . 27 7 . 2 1 8 . . . Terminals 96 | . 15 . 20 . . . 30 21 . . 1 8 1 . . Fabricators . | . . . . . . . . . . . . . . . . Repair Stations 18 | . 2 . 1 . . . 8 5 . . . 2 . . . Recycling Units 5 | . 2 . . . . . . 3 . . . . . . . Scanalyzers 2 | . . . . . . . 2 . . . . . . . . Garrison Access 6 | . . . . . . . 3 1 . . . 2 . . . Terminal Hacks 66 | . 9 . 6 . 2 . 8 7 1 . 1 1 3 7 21 Record 29 | . . . . . 1 . . . . . 1 . 2 5 20 Robot Analysis 7 | . 4 . . . . . 2 1 . . . . . . . Prototype ID Bank 3 | . 1 . 1 . . . 1 . . . . . . . . Open Door 5 | . . . . . . . . . 1 . . . 1 2 1 Open DSF 1 | . . . . . . . . 1 . . . . . . . Branch Access Points 4 | . . . 1 . . . 1 1 . . . 1 . . . Unreport Threat 3 | . 1 . 1 . . . . 1 . . . . . . . Locate Traps 10 | . 3 . 1 . . . 3 3 . . . . . . . Hauler Manifests 1 | . . . 1 . . . . . . . . . . . . Zone Layout 2 | . . . 1 . . . 1 . . . . . . . . Proto ID Catalog 1 | . . . . . 1 . . . . . . . . . . Fabricator Hacks . | . . . . . . . . . . . . . . . . Repair Station Hacks 15 | . 2 . . . . . 8 3 . . . 2 . . . Scan Component 8 | . 1 . . . . . 4 2 . . . 1 . . . Repair 7 | . 1 . . . . . 4 1 . . . 1 . . . Recycling Unit Hacks 4 | . 2 . . . . . . 2 . . . . . . . Retrieve Components 4 | . 2 . . . . . . 2 . . . . . . . Scanalyzer 2 | . . . . . . . 2 . . . . . . . . Insert Component 1 | . . . . . . . 1 . . . . . . . . Analyze 1 | . . . . . . . 1 . . . . . . . . Garrison Access Hacks 2 | . . . . . . . 1 . . . . 1 . . . Seal Access 2 | . . . . . . . 1 . . . . 1 . . . Unauthorized Hacks 17 | . 1 . 5 . . . 4 4 . . . 3 . . . Terminals 17 | . 1 . 5 . . . 4 4 . . . 3 . . . Assimilate 4 | . . . 2 . . . . 1 . . . 1 . . . Botnet 11 | . 1 . 2 . . . 3 3 . . . 2 . . . Operators 2 | . . . 1 . . . 1 . . . . . . . . Fabricators . | . . . . . . . . . . . . . . . . Repair Stations . | . . . . . . . . . . . . . . . . Recycling Units . | . . . . . . . . . . . . . . . . Scanalyzers . | . . . . . . . . . . . . . . . . Garrison Access . | . . . . . . . . . . . . . . . . Data Cores Recovered 1 | . . . . . . . . . . . . 1 . . . Used 1 | . . . . . . . . . . . . 1 . . . Hacking Detections 38 | . 4 . 8 . . . 12 9 . . . 5 . . . Full Trace Events 2 | . . . . . . . 1 1 . . . . . . . Feedback Events . | . . . . . . . . . . . . . . . . Feedback Blocked . | . . . . . . . . . . . . . . . . Robot Schematics Acquired 3 | . . . . . . . . . . 3 . . . . . Robots Built . | . . . . . . . . . . . . . . . . Authchips . | . . . . . . . . . . . . . . . . Time . | . . . . . . . . . . . . . . . . Total Robot Build Rating . | . . . . . . . . . . . . . . . . Part Schematics Acquired 16 | . . . . . . . . . . 16 . . . . . Parts Built . | . . . . . . . . . . . . . . . . Authchips . | . . . . . . . . . . . . . . . . Time . | . . . . . . . . . . . . . . . . Total Part Build Rating . | . . . . . . . . . . . . . . . . Parts Repaired 7 | . 1 . . . . . 4 1 . . . 1 . . . Time 232 | . 38 . . . . . 122 44 . . . 28 . . . Parts Recycled . | . . . . . . . . . . . . . . . . Recycled Matter . | . . . . . . . . . . . . . . . . Retrieved Matter . | . . . . . . . . . . . . . . . . Retrieved Components 20 | . 12 . . . . . . 8 . . . . . . . Parts Scanalyzed 1 | . . . . . . . 1 . . . . . . . . Part Schematics Acquired . | . . . . . . . . . . . . . . . . Parts Damaged . | . . . . . . . . . . . . . . . . Bothacking | -11 -10 -10 -9 -9 -9 -8 -8 -7 -7 -6 -5 -5 -5 -5 -5 ------------ Run | Yrd Mat Min Mat Min Exi Min Mat Fac Low Zio Pro Fac Upp Upp War Used RIF Installer . | . . . . . . . . . . . . . . . . Robots Hacked . | . . . . . . . . . . . . . . . . Non-combat . | . . . . . . . . . . . . . . . . Combat . | . . . . . . . . . . . . . . . . Robot Hacks Applied . | . . . . . . . . . . . . . . . . Relay Couplers Released . | . . . . . . . . . . . . . . . . Fabnet Peak Effective % . | . . . . . . . . . . . . . . . . Robots Rewired 2 | . . . . . . . . . . . . . . 2 . Allies Hacked . | . . . . . . . . . . . . . . . . Hacks Repelled . | . . . . . . . . . . . . . . . . Allies | -11 -10 -10 -9 -9 -9 -8 -8 -7 -7 -6 -5 -5 -5 -5 -5 -------- Run | Yrd Mat Min Mat Min Exi Min Mat Fac Low Zio Pro Fac Upp Upp War Total Allies 13 | . . . . . . . . 1 . 6 . 1 . 5 . Largest Group 6 | . . . . . . . . 1 . 6 6 6 . 5 2 Highest-Rated Group 298 | . . . . . . . . 22 . 298 298 298 . 172 62 Highest-Rated Ally 96 | . . . . . . . . 22 . 96 96 96 . 49 31 Total Orders 1 | . . . . . . . . . . . . . . 1 . FOLLOW 1 | . . . . . . . . . . . . . . 1 . Ally Attacks 45 | . . . . . . . . . . . 27 18 . . . Total Damage 1737 | . . . . . . . . . . . 557 1180 . . . Kills 8 | . . . . . . . . . . . 5 3 . . . Allies Corrupted 1 | . . . . . . . . . . . . 1 . . . Allies Melted 1 | . . . . . . . . . . . . . . . 1 Intel | -11 -10 -10 -9 -9 -9 -8 -8 -7 -7 -6 -5 -5 -5 -5 -5 ------- Run | Yrd Mat Min Mat Min Exi Min Mat Fac Low Zio Pro Fac Upp Upp War Active Infowar (turns) 5646 | 31 974 166 431 84 739 134 2210 . . 5 148 723 1 . . Sensors 4150 | . 386 166 431 84 739 134 2210 . . . . . . . . Seismic 410 | 31 379 . . . . . . . . . . . . . . Cloaking 1 | . . . . . . . . . . . . . 1 . . Jamming 876 | . . . . . . . . . . 5 148 723 . . . ECM 209 | . 209 . . . . . . . . . . . . . . Robot Analysis Total 7 | . 4 . . . . . 2 1 . . . . . . . Derelict Logs Recovered 7 | . . . . . . . . . 2 2 . . 1 2 . Drone Launches . | . . . . . . . . . . . . . . . . Drone Recoveries . | . . . . . . . . . . . . . . . . Exploration | -11 -10 -10 -9 -9 -9 -8 -8 -7 -7 -6 -5 -5 -5 -5 -5 ------------- Run | Yrd Mat Min Mat Min Exi Min Mat Fac Low Zio Pro Fac Upp Upp War Turns Passed 19458 | 56 1609 743 1868 84 739 134 3437 2488 648 1470 655 1068 1183 2061 1215 Spaces Moved 10286 | 29 837 487 861 49 431 56 1084 1123 563 1237 452 586 726 1070 695 Core 105 | . . . . . . . . . . . . . . . 105 Treads 2415 | . . . 62 . . . 1084 271 . . 2 . 554 428 14 Legs 42 | 29 13 . . . . . . . . . . . . . . Wheels 7724 | . 824 487 799 49 431 56 . 852 563 1237 450 586 172 642 576 Hover . | . . . . . . . . . . . . . . . . Flight . | . . . . . . . . . . . . . . . . Fastest Speed 50 | 120 95 125 95 170 155 145 160 111 111 111 111 140 140 157 50 Average Speed 150 | 120 119 125 159 170 169 145 193 173 112 112 123 140 153 177 160 Slowest Speed 560 | 120 140 125 320 170 170 145 243 400 126 126 560 140 480 246 360 Overloaded Moves . | . . . . . . . . . . . . . . . . Propulsion Burnouts . | . . . . . . . . . . . . . . . . Robots Hopped . | . . . . . . . . . . . . . . . . Potential Cave-ins 5 | . . . . . . . 3 2 . . . . . . . Cave-ins Triggered . | . . . . . . . . . . . . . . . . Exploration Rate (%) 56 | 3 97 67 66 13 90 17 57 32 61 85 60 14 73 98 73 Regions Visited 15 Branch Regions 10 Pre-discovered Areas 5 | . . . . . 1 . . . 1 1 . . . 2 . Known Exits Taken 6 | . . . 1 . . . . 1 1 1 1 1 . . . Unknown Exits Taken 9 | 1 1 1 . 1 1 1 1 . . . . . 1 1 . Scrap Searched 13 | . . 1 . . . . . . 3 2 2 . 3 2 . Spaces Dug 43 | . 2 . 1 . . . 26 13 . . . 1 . . . Terrain Destroyed 340 | . 2 21 2 . . 1 124 14 13 . . 1 2 45 115 Melee 32 | . . . 1 . . . 19 11 . . . 1 . . . Projectile 42 | . 2 . 1 . . 1 19 3 . . . . 2 5 9 AOE 265 | . . 21 . . . . 86 . 13 . . . . 39 106 Terrain Rammed . | . . . . . . . . . . . . . . . . Walls Destroyed . | . . . . . . . . . . . . . . . . Machines Disabled . | . . . . . . . . . . . . . . . . Actions | -11 -10 -10 -9 -9 -9 -8 -8 -7 -7 -6 -5 -5 -5 -5 -5 --------- Run | Yrd Mat Min Mat Min Exi Min Mat Fac Low Zio Pro Fac Upp Upp War Total 13419 | 37 1313 561 1234 49 439 76 2284 1516 574 1302 538 804 773 1164 755 Wait 2162 | . 345 29 252 . . 1 1045 219 . 21 69 154 . 26 1 Move 10271 | 28 836 486 860 48 430 55 1083 1122 562 1236 451 585 725 1069 695 Hop . | . . . . . . . . . . . . . . . . Pick Up 127 | 2 23 3 17 . . . 20 19 1 5 3 14 7 6 7 Fast Attach 49 | 1 . . 1 . 4 . 5 5 2 10 1 3 4 . 13 Attach 46 | . 5 2 5 . . 3 3 9 . . . 7 3 4 5 Detach 12 | . . . . . 1 . . 2 . 5 . 2 2 . . Swap 137 | . 12 9 24 1 1 1 23 31 3 4 2 5 7 10 4 Drop 116 | . 15 3 15 . 3 . 11 17 3 11 5 13 10 1 9 Fire 412 | 6 77 29 58 . . 16 68 70 3 6 7 12 9 32 19 Melee 60 | . . . 2 . . . 26 14 . 4 . 9 5 . . Ram 2 | . . . . . . . . . . . . . . . 2 Kick . | . . . . . . . . . . . . . . . . Crush . | . . . . . . . . . . . . . . . . Escape Stasis 8 | . . . . . . . . 8 . . . . . . . Rewire 17 | . . . . . . . . . . . . . 1 16 . Trap . | . . . . . . . . . . . . . . . . Miscellaneous . | . . . . . . . . . . . . . . . . Route ------- -11/Scrapyard -10/Materials (discovered 5 exits: *Mat x3 / [*Min] / [*Sub]) -10/Mines -9/Materials (discovered 2 exits: *Mat / *Min) -9/Mines -9/Exiles (discovered 2 exits: [*Min x2]) -8/Mines -8/Materials -7/Factory (discovered 4 exits: *Fac / Sto / *Low x2) -7/Lower Caves -6/Zion -5/Proximity Caves -5/Factory (discovered 2 exits: *Upp x2) -5/Upper Caves -5/Upper Caves (discovered 2 exits: [*Fac] / *War) -5/Warlord History --------- Turn | Location | Event 20 | -11/Scrapyard | Discovered new exit (range 3) 57 | -11/Scrapyard | Entered Materials 176 | -10/Materials | Discovered new exit (range 11) 269 | -10/Materials | Discovered new exit (range 7) 302 | -10/Materials | Build established: Mutant 420 | -10/Materials | Discovered new exit (range 14) 488 | -10/Materials | Discovered new exit (range 16) 657 | -10/Materials | Derelicts attacked the area 718 | -10/Materials | Discovered new exit (range 15) 946 | -10/Materials | Repaired Lgt. Nuclear Core 1207 | -10/Materials | Core integrity fell below 50% 1666 | -10/Materials | Entered Mines 1688 | -10/Mines | Met a Derelict bent on vengeance 1699 | -10/Mines | Assembled infested the area 2206 | -10/Mines | Core integrity fell below 20% 2383 | -10/Mines | Discovered new exit (range 8) 2409 | -10/Mines | Entered Materials 2409 | -9/Materials | Evolved 2 slots: Propulsion x1, Utility x1 2668 | -9/Materials | Discovered new exit (range 16) 3616 | -9/Materials | Discovered new exit (range 16) 3616 | -9/Materials | Identified exit to Mines 4174 | -9/Materials | Build established: Scavenger-Mutant 4277 | -9/Materials | Entered Mines 4352 | -9/Mines | Deemed a non-threat by the Exiles lab entrance 4354 | -9/Mines | Discovered new exit (range 5) 4361 | -9/Mines | Entered Exiles 4389 | -9/Exiles | Discovered new exit (range 14) 4419 | -9/Exiles | Met 8R-AWN 4448 | -9/Exiles | Met EX-HEX 4511 | -9/Exiles | Met EX-DEC 4582 | -9/Exiles | Visited The Gauntlet 4786 | -9/Exiles | Learned location of Zion (-6) 4817 | -9/Exiles | Met EX-BIN 4841 | -9/Exiles | Aligned with FarCom system 4843 | -9/Exiles | Given EX-Vault access code 4892 | -9/Exiles | Opened EX-Vault 4904 | -9/Exiles | Found Latent Energy Streamer 4913 | -9/Exiles | Found Firepult 4926 | -9/Exiles | Found Longsword +1 4959 | -9/Exiles | Warned to stay clear of 0b10 Research branches 4967 | -9/Exiles | Exiles lab attacked by MAIN.C 5077 | -9/Exiles | Discovered new exit (range 14) 5100 | -9/Exiles | Left Exiles lab with Longsword +1 5100 | -9/Exiles | Entered Mines 5151 | -8/Mines | Lost 3 parts (2n1u) 5222 | -8/Mines | Discovered new exit (range 8) 5234 | -8/Mines | Entered Materials 5234 | -8/Materials | Evolved 2 slots: Propulsion x1, Utility x1 5394 | -8/Materials | Build established: Skirmisher 6494 | -8/Materials | Build established: Assassin 6888 | -8/Materials | Build established: Skirmisher 7245 | -8/Materials | Repaired Assault Cannon 7272 | -8/Materials | Repaired Lgt. Treads 7300 | -8/Materials | Repaired Lgt. Treads 7333 | -8/Materials | Repaired Hvy. Assault Rifle 7406 | -8/Materials | Discovered new exit (range 13) 7750 | -8/Materials | Build established: Scavenger-Mutant 8671 | -8/Materials | Entered Factory 8671 | -7/Factory | Evolved 2 slots: Propulsion x1, Utility x1 9432 | -7/Factory | Lost 4 parts (2n1u1w) 9815 | -7/Factory | Repaired Imp. Medium Armor Plating 10244 | -7/Factory | Build established: Mutant 10428 | -7/Factory | Discovered new exit (range 4) 10432 | -7/Factory | Identified exit to Factory 10945 | -7/Factory | Identified exit to Storage 10945 | -7/Factory | Identified exit to Lower Caves 11159 | -7/Factory | Entered Lower Caves 11571 | -7/Lower Caves | Spotted B-75 Beast 11611 | -7/Lower Caves | Learned Factory emergency access door positions 11798 | -7/Lower Caves | A Derelict revealed a hidden shortcut to a safe place 11806 | -7/Lower Caves | Identified exit to Zion 11807 | -7/Lower Caves | Entered Zion 11857 | -6/Zion | Visited the Megawrench Repair Shop 11907 | -6/Zion | System corruption cleaned by Quarantine Array 12402 | -6/Zion | Given A8's code to call for help 12525 | -6/Zion | Gained Derelict followers 12764 | -6/Zion | Rebuked by Imprinter 12932 | -6/Zion | Enhanced Grunt warped into view, answering call for help 12935 | -6/Zion | Enhanced Grunt warped into view, answering call for help 13190 | -6/Zion | Megawrench repaired 9 parts 13254 | -6/Zion | Discovered new exit (range 15) 13270 | -6/Zion | Identified exit to Proximity Caves 13277 | -6/Zion | Entered Proximity Caves 13277 | -5/Proximity Caves | Accompanied by 6 allies 13914 | -5/Proximity Caves | Discovered new exit (range 6) 13921 | -5/Proximity Caves | Identified exit to Factory 13932 | -5/Proximity Caves | Entered Factory 13932 | -5/Factory | Accompanied by 6 allies 13932 | -5/Factory | Evolved 4 slots: Power x1, Propulsion x1, Utility x1, Weapon x1 14132 | -5/Factory | Repaired Adv. Shield Generator 14218 | -5/Factory | Build established: Scavenger-Mutant 14608 | -5/Factory | Lost 3 allies 14694 | -5/Factory | Identified exit to Upper Caves 14920 | -5/Factory | Lost 4 allies 15000 | -5/Factory | Entered Upper Caves 15034 | -5/Upper Caves | Encountered a Warlord checkpoint 15178 | -5/Upper Caves | Build established: Scavenger-Tank 15249 | -5/Upper Caves | Attacked by a delusional Derelict stockpiling parts 15491 | -5/Upper Caves | Entered a destroyed Warlord outpost 15577 | -5/Upper Caves | Build established: Scavenger-Mutant 15848 | -5/Upper Caves | Learned Factory emergency access door positions 15883 | -5/Upper Caves | Attracted the attention of an 0b10 checkpoint 16163 | -5/Upper Caves | Discovered new exit (range 14) 16182 | -5/Upper Caves | Build established: Scavenger-Tank 16183 | -5/Upper Caves | Entered another Upper Caves area 16205 | -5/Upper Caves | Learned Factory terminal intel 16353 | -5/Upper Caves | Discovered new exit (range 15) 16646 | -5/Upper Caves | Attracted the attention of an 0b10 outpost 16694 | -5/Upper Caves | Destroyed 13 combat bots 16785 | -5/Upper Caves | Lost 4 parts (3n1u) 17031 | -5/Upper Caves | Build established: Scavenger-Gunner 17195 | -5/Upper Caves | Entered an active Warlord outpost 17224 | -5/Upper Caves | A Commander dispatched an escort 17228 | -5/Upper Caves | Learned 8 Research zone layouts 17228 | -5/Upper Caves | Learned Armory trap positions 17228 | -5/Upper Caves | Learned Research garrison access intel 17552 | -5/Upper Caves | Discovered new exit (range 11) 17594 | -5/Upper Caves | Build established: Scavenger-Tank 18244 | -5/Upper Caves | Entered Warlord 18244 | -5/Warlord | Accompanied by 2 allies 18245 | -5/Warlord | Commander's escort returned to base 18245 | -5/Warlord | Commander's escort returned to base 18468 | -5/Warlord | Met Warlord 18493 | -5/Warlord | Warlord's base attacked by MAIN.C 18610 | -5/Warlord | Found Prototype Energy Gun 18610 | -5/Warlord | Identified Vortex Rail 18621 | -5/Warlord | Found Vortex Rail 18843 | -5/Warlord | Warlord forces counterattacked 18988 | -5/Warlord | Found Prototype Special Weapon 18988 | -5/Warlord | Identified RU-N14's Throwing Claymores v3 18992 | -5/Warlord | Found RU-N14's Throwing Claymores v3 18995 | -5/Warlord | Found RU-N14's Throwing Claymores v3 19068 | -5/Warlord | Spotted B-86 Titan 19123 | -5/Warlord | Destroyed B-86 Titan 19154 | -5/Warlord | Found RU-N14's Throwing Claymores v3 19168 | -5/Warlord | Warlord base infiltrated, sounded retreat 19285 | -5/Warlord | Spotted Striker 19307 | -5/Warlord | System corruption reached 10% 19337 | -5/Warlord | Lost 6 parts (1p2n3u) 19373 | -5/Warlord | Spotted Executioner 19375 | -5/Warlord | Released all parts (9) 19405 | -5/Warlord | Lost 3 parts (1u2w) 19423 | -5/Warlord | Core integrity fell below 50% 19453 | -5/Warlord | Spotted Striker 19457 | -5/Warlord | Core integrity fell below 20% 19459 | -5/Warlord | Destroyed by H-66 Slayer with Heavy Assault Rifle Last Messages --------------- 19433_ Acquired 11 matter. 19436_ Acquired 5 matter. 19437_ Acquired 4 matter. 19439_ Acquired 5 matter. 19439_ Slug penetrates Earth. 19440_ Acquired 48 matter. 19442_ Autogun destroyed. 19449_ Penetrated by Slug. 19452_ Slug penetrates Earth. 19452_ Penetrated by Slug. 19452_ Autogun destroyed. 19452_ Slug penetrates Earth. 19452_ HN-N5R(c) destroyed. 19456_ The unstable cave ceiling collapses. 19456_ Slammed into S-27 Virus. 19456_ Penetrated by Slug. 19456_ Slug penetrates Earth. 19459_ The unstable cave ceiling collapses. 19459_ Slug penetrates Earth. [Achievement: Back For More] Map ----- +----------------------------------------------------+ | ?????????????????????????????????????? | | ?????????????????????????????????????? | | ?????????????????????????????????????? | | ?????????????????????????????????????? | | ?????????????????????????????????????? | | ?????????????????????????????????????? | | ?????????????????????????????????????? | | ?????????????????????????????????????? | | ?????????????????????????????????????? | | ?????????????????????????????????????? | | ?????????????????????????????????????? | | ??????????????????# ?????##??????????? | | ??????????????????? ???## ??????????? | | ???????????????????? ?? ??????????? | | ????????????????????? ### ??????????? | | ?????????????????????? ??????????? | | ?#""???????????????##?# #?????????? | | ?#""??????????????? ?## ?????????? | | ?#""#???????####??? ### ^ ###??????? | | ##""######### ### *#?# ^ "#????#?? | | "" # # # # # # !#???# % #??? #? | | "" = ## #????### ##? #?? | | " [ = ###??# # # #??? | | "" =# #### ## #???? | | % s[ # % # #???? | | =sss @ ## #??? | | % ss Ksh # ## #??? | | ### h ###?? #??? | | ! ] ! ## ## #???? #??? | | % ###?# #???? ??? | | " #### ### # #??# ##???? #?? | | ##""" "# ## #?## # ### #????? ??? | | ?#""# # # ## ##???# ### #???? ???? | | ?#""######## ??????### # ???? ???? | | ?#""#??????##???????## # #???? ???? | | ??""????????????????# ##????? #???? | | ????????????????????# #?????? #???? | | ????????????????????# #?????? #???? | | ????????????????????# ??????? ##??? | | ???????????????????## "#????## #??? | | ??????????????????## ##??## #??? | | ??????????????????# ##?# #??? | | ??????????????????# ## ### #??? | | ?????????????????# #?## ## #??? | | ???????????????? ???## ## #??? | | ??????????????? ????# ## ##??? | | ?????????????# ## ????## #???? | | ?????????????####?#??????### ##???? | | ???????????????????????????######????? | | ?????????????????????????????????????? | +----------------------------------------------------+ Best States ------------- Heat Dissipation 48 Energy Generation 29 Energy Capacity 340 Matter Stores 300 Matter Capacity 300 Sight Range 16 Robot Scan Range 14 Terrain Scan Density 10 ECM Strength 1 Jamming Range 14 Armor Coverage 675 Resistance: TH 10 Evasion (%) 55 Targeting Accuracy 14 Target Analysis 6 Recoil Reduction 12 Matter Filtering 30 Defensive Hacking 10 Authchip Count 1 Item Schematics ----------------- Neutrino Core | -6/Zion | Archive Imp. Particle Charger | -6/Zion | Archive Thermic Laser | -6/Zion | Archive Imp. Kinecellerator | -6/Zion | Archive Imp. System Guard | -6/Zion | Archive Imp. Core Shielding | -6/Zion | Archive Lrn. Tractor Beam | -6/Zion | Archive Imp. Force Field | -6/Zion | Archive Imp. Reaction Control System | -6/Zion | Archive Hvy. Shock Bomb Launcher | -6/Zion | Archive Lgt. Angular Momentum Engine | -6/Zion | Archive Mass Driver | -6/Zion | Archive Imp. System Shield | -6/Zion | Archive Imp. Component Analysis Suite | -6/Zion | Archive Thermal Shield | -6/Zion | Archive Hvy. Mass Driver | -6/Zion | Archive Robot Schematics ------------------ M-22 Extractor | -6/Zion | Archive A-02 Transporter | -6/Zion | Archive B-48 Gladiator | -6/Zion | Archive Fabricated ------------ Nothing Repaired ---------- Lgt. Nuclear Core | 74% | -10/Materials Assault Cannon | 22% | -8/Materials Lgt. Treads | 17% | -8/Materials Lgt. Treads | 30% | -8/Materials Hvy. Assault Rifle | 73% | -8/Materials Imp. Medium Armor Plating | 36% | -7/Factory Adv. Shield Generator | 38% | -5/Factory Alien Tech Used ----------------- None Achievements -------------- Back For More Explorer Exterminator Challenges ------------ None Game ------ Seed TeslaVortexStorage Manual? 0 Play Time 02:53:34 Cumulative 69.9 hours Start 2025.07.31 @ 10:20:25 End 2025.08.01 @ 08:40:44 Sessions 7 Manual Loads 0 Difficulty Rogue Special Mode None Game No. 51 Rogue 50 Adventurer 0 Explorer 1 Win Type - Total 2 Types 2/0/0/0/0/0/0/0/0/0 Lore% 41 Gallery% 34 Achievement% 32 Wizard Run 0 Options --------- Layout 2 ASCII 0 Keyboard 0 Movement Numpad Keybinds 0 Fullscreen 1 Font 32/SmallcapsGlow Map View 50x44 Zoom Use 0% Tactical HUD 1 Map Filters NONE Filters NONE Steam 1 RUN: c50aeb3b-b01c-4b04-83b6-c0693b0a3021